bitfinex/quotes_SOLUSD_20241103
["timestamp","ask_amount","ask_price","bid_price","bid_amount"]
[1730635689846,3.62073881,163.73,163.64,16.4017027]
[1730635690146,3.62073881,163.72,163.65,0.22549]
[1730635690351,3.62073881,163.71,163.65,20.32549]
[1730635690547,3.62249823,163.7,163.66,0.1]
[1730635690736,0.12549,163.79,163.67,6.1764]
[1730635690941,3.62274031,163.78,163.67,6.1764]
[1730635691133,3.62274031,163.77,163.67,6.1764]
[1730635691339,3.62274031,163.76,163.67,6.1764]
[1730635691545,3.62274031,163.75,163.67,6.1764]
[1730635691741,0.37647,163.79,163.67,6.1764]
[1730635691947,23.776884,163.77,163.67,6.1764]
[1730635692249,24.153354,163.79,163.67,6.1764]
[1730635692250,23.776884,163.75,163.67,6.1764]
[1730635692440,3.62133717,163.74,163.67,6.1764]
[1730635692753,3.62133717,163.73,163.67,6.1764]
[1730635693054,3.62133717,163.72,163.67,6.1764]
[1730635693247,3.62133717,163.71,163.67,6.1764]
[1730635693452,3.62133717,163.7,163.67,6.1764]
[1730635693633,23.776884,163.75,163.67,6.1764]
[1730635693834,3.61931058,163.74,163.67,6.1764]
[1730635694034,3.61931058,163.73,163.67,6.1764]
[1730635694356,23.776884,163.75,163.67,6.1764]
[1730635694357,3.61931058,163.72,163.67,6.1764]
[1730635694539,3.61931058,163.71,163.67,6.1764]
[1730635694738,3.61931058,163.7,163.67,6.1764]
[1730635694956,23.776884,163.75,163.67,6.1764]
[1730635695453,3.61888483,163.74,163.67,6.1764]
[1730635695652,3.61888483,163.73,163.67,6.1764]
[1730635695853,3.61888483,163.72,163.67,6.1764]
[1730635696054,18.72647,163.79,163.67,6.1764]
[1730635696055,3.6192468,163.71,163.67,6.1764]
[1730635696361,139.6,163.8,163.7,20.0]
[1730635696543,3.619558,163.79,163.7,20.0]
[1730635696868,3.619558,163.78,163.7,20.0]
[1730635697033,3.619558,163.77,163.7,20.0]
[1730635697233,3.619558,163.76,163.7,20.0]
[1730635697429,3.619558,163.75,163.7,20.0]
[1730635697634,3.619558,163.74,163.71,0.22549]
[1730635697930,139.6,163.85,163.74,16.4129]
[1730635698130,143.21794946,163.84,163.74,16.4129]
[1730635698351,3.61794946,163.83,163.74,16.4129]
[1730635698561,3.61794946,163.82,163.74,16.4129]
[1730635698763,139.6,163.81,163.74,16.4129]
[1730635699060,143.21794946,163.8,163.74,16.4129]
[1730635699350,3.61794946,163.79,163.74,16.4129]
[1730635699552,3.61794946,163.78,163.74,16.4129]
[1730635699867,3.61794946,163.77,163.75,20.12549]
[1730635700152,139.6,163.82,163.75,20.32549]
[1730635700355,143.21296359,163.81,163.76,6.5399]
[1730635700560,143.21296359,163.8,163.77,20.12549]
[1730635700855,22.046,163.9,163.77,20.12549]
[1730635701348,0.12549,163.89,163.77,20.0]
[1730635702178,24.153354,163.89,163.77,20.0]
[1730635702335,24.153354,163.89,163.76,6.5399]
[1730635703663,42.503354,163.89,163.74,16.4129]
[1730635705248,42.603354,163.89,163.74,16.4129]
[1730635705562,42.503354,163.89,163.74,16.4129]
[1730635706056,42.603354,163.89,163.74,16.4129]
[1730635707557,42.503354,163.89,163.74,16.4129]
[1730635707759,42.603354,163.89,163.74,16.4129]
[1730635710059,42.503354,163.89,163.74,16.4129]
[1730635710243,42.603354,163.89,163.74,16.4129]
[1730635710444,42.503354,163.89,163.74,16.4129]
[1730635710852,42.503354,163.89,163.75,0.12549]
[1730635711054,42.503354,163.89,163.75,20.57647]
[1730635711055,18.35,163.89,163.75,20.57647]
[1730635711237,0.12549,163.88,163.75,20.47647]
[1730635712163,0.25098,163.88,163.75,20.37647]
[1730635712345,0.25098,163.87,163.75,20.12549]
[1730635713437,0.25098,163.87,163.75,0.12549]
[1730635713752,42.252374,163.88,163.75,20.57647]
[1730635714546,42.252374,163.88,163.75,20.47647]
[1730635715763,42.252374,163.88,163.75,20.37647]
[1730635716268,42.252374,163.88,163.75,20.47647]
[1730635716845,42.252374,163.88,163.75,20.37647]
[1730635718465,42.252374,163.88,163.75,20.47647]
[1730635719552,23.902374,163.89,163.75,20.47647]
[1730635719760,0.25098,163.88,163.75,20.57647]
[1730635719969,0.25098,163.88,163.75,20.47647]
[1730635721763,0.25098,163.88,163.75,20.57647]
[1730635722266,23.776884,163.89,163.77,0.22549]
[1730635722452,22.046,163.9,163.77,0.22549]
[1730635723753,23.776884,163.89,163.77,0.22549]
[1730635730883,23.776884,163.89,163.78,6.3387]
[1730635731261,0.2986027,163.93,163.78,6.3387]
[1730635731262,0.25098,163.92,163.8,20.0]
[1730635735264,0.2986027,163.93,163.83,24.153354]
[1730635736759,0.2986027,163.93,163.85,15.9727]
[1730635737180,15.5824027,163.94,163.85,15.9727]
[1730635738183,23.776884,163.93,163.85,15.9727]
[1730635738375,23.776884,163.93,163.84,26.1458]
[1730635744379,23.776884,163.93,163.81,15.9727]
[1730635744380,0.37647,163.92,163.81,15.9727]
[1730635744599,23.776884,163.91,163.82,20.0]
[1730635746874,23.776884,163.91,163.81,15.9727]
[1730635747388,0.37647,163.9,163.79,6.1458]
[1730635747595,0.37647,163.9,163.78,6.36787319]
[1730635747895,23.776884,163.88,163.78,6.36787319]
[1730635748891,0.37647,163.87,163.78,6.36787319]
[1730635749096,0.12549,163.83,163.78,6.36787319]
[1730635749283,23.776884,163.82,163.78,6.36787319]
[1730635750068,23.776884,163.82,163.73,15.9727]
[1730635750272,23.776884,163.82,163.74,6.3686488]
[1730635755577,15.2406,163.83,163.74,6.3686488]
[1730635762587,24.027864,163.82,163.74,6.3686488]
[1730635762801,24.153354,163.82,163.74,6.3686488]
[1730635765008,42.503354,163.82,163.74,6.3686488]
[1730635765895,42.503354,163.82,163.69,16.6395]
[1730635766098,42.503354,163.82,163.71,6.36777696]
[1730635766899,24.153354,163.78,163.71,6.36777696]
[1730635767094,24.153354,163.78,163.67,0.91609353]
[1730635767498,24.153354,163.78,163.69,6.36799974]
[1730635769109,15.5139,163.79,163.69,6.36799974]
[1730635769993,24.153354,163.8,163.71,16.1705]
[1730635781419,24.153354,163.8,163.7,6.36701998]
[1730635783915,42.503354,163.8,163.7,6.36701998]
[1730635787821,24.4408,163.81,163.7,6.36701998]
[1730635787999,0.12549,163.8,163.67,17.08659353]
[1730635788203,0.12549,163.8,163.71,6.36745433]
[1730635789020,24.153354,163.8,163.71,6.36745433]
[1730635796535,0.37647,163.8,163.71,6.36745433]
[1730635796726,24.153354,163.8,163.71,6.36745433]
[1730635797620,6.0908,163.81,163.71,6.36745433]
[1730635797821,24.027864,163.82,163.71,6.36745433]
[1730635798021,24.027864,163.82,163.73,16.0021]
[1730635799770,15.5139,163.83,163.73,16.0021]
[1730635800250,24.153354,163.82,163.73,16.0021]
[1730635805766,24.153354,163.82,163.72,12.98878661]
[1730635805767,42.503354,163.82,163.72,6.66228661]
[1730635807934,42.503354,163.8,163.72,6.66228661]
[1730635808832,18.47549,163.78,163.72,0.2986027]
[1730635809033,0.12549,163.76,163.72,0.2986027]
[1730635816241,23.776884,163.78,163.72,0.2986027]
[1730635819829,15.2254,163.79,163.72,0.2986027]
[1730635820030,24.027864,163.8,163.72,0.2986027]
[1730635821046,0.12549,163.8,163.72,0.2986027]
[1730635821233,16.0325,163.83,163.72,0.2986027]
[1730635821630,0.12549,163.82,163.72,0.2986027]
[1730635822850,0.12549,163.8,163.72,0.2986027]
[1730635830140,0.25098,163.8,163.72,0.2986027]
[1730635830353,0.25098,163.78,163.72,0.2986027]
[1730635830755,0.25098,163.77,163.72,0.2986027]
[1730635832246,18.34,163.8,163.72,0.2986027]
[1730635833157,0.12549,163.79,163.72,0.2986027]
[1730635833658,0.25098,163.77,163.72,0.2986027]
[1730635833868,24.153354,163.77,163.72,0.2986027]
[1730635834646,70.0,163.81,163.72,0.2986027]
[1730635834647,18.34,163.8,163.72,0.2986027]
[1730635834966,42.367864,163.81,163.72,0.2986027]
[1730635835867,0.12549,163.8,163.72,0.2986027]
[1730635836053,18.59098,163.81,163.72,0.2986027]
[1730635836252,23.902374,163.8,163.72,0.2986027]
[1730635837144,0.12549,163.8,163.72,0.2986027]
[1730635839354,23.776884,163.82,163.73,15.5354]
[1730635840450,0.25098,163.82,163.73,15.5354]
[1730635845649,23.902374,163.83,163.73,15.5354]
[1730635845855,24.6913,163.85,163.73,15.5354]
[1730635845856,23.776884,163.84,163.73,15.5354]
[1730635851776,0.37647,163.83,163.73,15.5354]
[1730635857361,18.46549,163.79,163.72,0.2986027]
[1730635857567,24.027864,163.78,163.72,0.2986027]
[1730635858490,0.12549,163.77,163.72,0.2986027]
[1730635865294,0.12549,163.75,163.72,0.2986027]
[1730635886987,0.25098,163.76,163.72,0.2986027]
[1730635893612,0.12549,163.75,163.72,0.2986027]
[1730635897218,18.34,163.77,163.72,0.2986027]
[1730635897595,0.12549,163.76,163.72,0.2986027]
[1730635897800,18.34,163.77,163.72,0.2986027]
[1730635898099,0.12549,163.76,163.72,0.2986027]
[1730635898819,18.34,163.79,163.72,0.2986027]
[1730635898820,0.25098,163.78,163.72,0.2986027]
[1730635899198,24.027864,163.76,163.72,0.2986027]
[1730635899400,0.25098,163.75,163.72,0.2986027]
[1730635901221,42.493354,163.73,163.72,0.2986027]
[1730635901395,112.493354,163.73,163.72,0.2986027]
[1730635902101,112.593354,163.73,163.72,0.2986027]
[1730635902313,112.493354,163.73,163.72,0.2986027]
[1730635902516,112.593354,163.73,163.72,0.2986027]
[1730635902708,112.693354,163.73,163.72,0.2986027]
[1730635902909,132.693354,163.73,163.72,0.2986027]
[1730635903220,132.693354,163.73,163.64,0.2986027]
[1730635903221,42.493354,163.68,163.64,0.2986027]
[1730635904203,42.493354,163.65,163.64,0.2986027]
[1730635904912,50.65117833,163.65,163.64,0.2986027]
[1730635907207,50.64511722,163.65,163.64,0.2986027]
[1730635910312,50.63579872,163.65,163.64,0.2986027]
[1730635910705,50.73579872,163.65,163.64,0.2986027]
[1730635911328,56.89159872,163.65,163.64,0.2986027]
[1730635913029,76.89159872,163.65,163.64,0.2986027]
[1730635913826,72.2723014,163.65,163.64,0.2986027]
[1730635914134,76.86658496,163.65,163.64,0.2986027]
[1730635915628,82.98768496,163.65,163.64,0.2986027]
[1730635917528,82.97425872,163.65,163.64,0.2986027]
[1730635918121,0.12549,163.58,163.52,15.0629]
[1730635918321,112.242374,163.57,163.48,0.2986027]
[1730635918519,115.84012286,163.57,163.48,0.2986027]
[1730635919027,120.34096156,163.57,163.48,0.2986027]
[1730635919230,140.54096156,163.57,163.48,0.2986027]
[1730635919738,0.12549,163.5,163.48,0.2986027]
[1730635920111,4.61998813,163.49,163.48,0.2986027]
[1730635920426,28.52236213,163.49,163.46,14.3584027]
[1730635920635,24.027864,163.49,163.46,14.3584027]
[1730635923138,23.902374,163.49,163.46,14.3584027]
[1730635924931,18.34,163.54,163.46,14.3584027]
[1730635925134,28.50579956,163.53,163.46,14.3584027]
[1730635925319,24.027864,163.51,163.46,14.3584027]
[1730635925520,0.12549,163.52,163.46,14.3584027]
[1730635925714,0.12549,163.51,163.46,14.3584027]
[1730635925923,70.0,163.57,163.46,14.3584027]
[1730635926122,26.39216164,163.56,163.46,14.3584027]
[1730635926431,4.60078511,163.55,163.46,14.3584027]
[1730635926736,18.34,163.58,163.46,14.3584027]
[1730635926917,22.81409737,163.57,163.46,14.3584027]
[1730635927115,0.12549,163.55,163.46,14.3584027]
[1730635927513,18.34,163.58,163.47,6.1087]
[1730635927818,0.37647,163.56,163.47,6.1087]
[1730635928618,24.027864,163.54,163.47,6.1087]
[1730635932610,18.34,163.58,163.47,6.1087]
[1730635932816,0.25098,163.56,163.47,6.1087]
[1730635933016,0.37647,163.56,163.47,6.1087]
[1730635933825,23.776884,163.58,163.47,6.1087]
[1730635934025,4.46792045,163.57,163.47,6.1087]
[1730635934224,0.25098,163.57,163.47,6.1087]
[1730635935742,0.12549,163.56,163.47,6.1087]
[1730635937324,0.25098,163.57,163.47,6.1087]
[1730635937548,0.12549,163.57,163.48,16.555]
[1730635937726,19.40216006,163.62,163.48,16.555]
[1730635937929,0.12549,163.6,163.48,16.555]
[1730635938140,8.04676123,163.59,163.48,16.555]
[1730635938346,4.46781845,163.58,163.48,16.555]
[1730635938542,18.34,163.63,163.51,16.555]
[1730635938751,3.58020144,163.62,163.51,16.555]
[1730635939049,3.58020144,163.61,163.51,16.555]
[1730635939252,4.46778682,163.6,163.51,16.555]
[1730635939544,3.58020144,163.59,163.51,16.555]
[1730635939945,18.34,163.64,163.51,16.555]
[1730635940141,24.027864,163.62,163.51,16.555]
[1730635940328,0.12549,163.59,163.51,16.555]
[1730635940933,24.027864,163.57,163.51,16.555]
[1730635944134,3.58984388,163.56,163.51,16.555]
[1730635944337,24.027864,163.57,163.51,16.555]
[1730635944537,3.5924555,163.56,163.51,16.555]
[1730635944830,24.027864,163.57,163.51,16.555]
[1730635945053,3.59230206,163.55,163.51,16.555]
[1730635945357,24.027864,163.57,163.51,16.555]
[1730635945547,3.59523089,163.56,163.51,16.555]
[1730635945850,3.59523089,163.55,163.51,16.555]
[1730635946055,24.027864,163.57,163.51,16.555]
[1730635946242,3.59811532,163.56,163.51,16.555]
[1730635946842,24.027864,163.55,163.47,22.25931103]
[1730635947059,3.59811532,163.54,163.47,22.25931103]
[1730635947738,24.027864,163.53,163.47,22.25931103]
[1730635947939,3.59811532,163.52,163.47,22.25931103]
[1730635948140,3.59811532,163.52,163.47,15.8919]
[1730635948340,3.60447543,163.51,163.47,15.8919]
[1730635948561,3.60447543,163.5,163.47,15.8919]
[1730635948742,24.027864,163.53,163.47,15.8919]
[1730635948948,3.60430569,163.52,163.47,15.8919]
[1730635949138,3.60430569,163.51,163.47,15.8919]
[1730635949458,3.60430569,163.5,163.47,15.8919]
[1730635949759,24.027864,163.53,163.47,15.8919]
[1730635949760,3.60430569,163.49,163.47,15.8919]
[1730635949948,24.027864,163.53,163.47,15.8919]
[1730635950147,3.6064566,163.52,163.47,15.8919]
[1730635950345,3.6064566,163.51,163.47,15.8919]
[1730635950666,3.6064566,163.5,163.47,15.8919]
[1730635950844,3.6064566,163.49,163.47,15.8919]
[1730635951159,24.027864,163.57,163.47,15.8919]
[1730635951357,8.08749315,163.56,163.47,15.8919]
[1730635951661,8.08749315,163.55,163.47,15.8919]
[1730635951861,24.027864,163.57,163.47,15.8919]
[1730635951862,3.60924707,163.54,163.47,15.8919]
[1730635952247,3.60924707,163.53,163.47,15.8919]
[1730635952543,3.60924707,163.52,163.47,15.8919]
[1730635952757,3.60924707,163.51,163.47,15.8919]
[1730635952965,3.60924707,163.5,163.47,15.8919]
[1730635953142,0.12549,163.56,163.47,15.8919]
[1730635953343,8.09450072,163.55,163.47,15.8919]
[1730635953644,3.61231799,163.54,163.47,15.8919]
[1730635953850,3.61231799,163.53,163.47,15.8919]
[1730635954062,3.61231799,163.52,163.47,15.8919]
[1730635954240,3.61231799,163.51,163.47,15.8919]
[1730635954443,3.61231799,163.5,163.47,15.8919]
[1730635954749,3.61231799,163.49,163.47,15.8919]
[1730635954956,0.12549,163.56,163.47,15.8919]
[1730635955161,8.10040613,163.55,163.47,15.8919]
[1730635955362,8.10040613,163.54,163.47,15.8919]
[1730635955566,3.61415412,163.53,163.47,15.8919]
[1730635955757,3.61415412,163.52,163.47,15.8919]
[1730635955954,3.61415412,163.51,163.47,15.8919]
[1730635956151,3.61415412,163.5,163.47,15.8919]
[1730635956353,0.25098,163.57,163.47,15.8919]
[1730635956553,8.10830199,163.56,163.47,15.8919]
[1730635956865,3.6188383,163.55,163.47,15.8919]
[1730635957069,3.6188383,163.54,163.47,15.8919]
[1730635957257,3.6188383,163.53,163.47,15.8919]
[1730635957456,3.6188383,163.52,163.47,15.8919]
[1730635957645,3.6188383,163.51,163.47,15.8919]
[1730635957842,3.6188383,163.5,163.47,15.8919]
[1730635958067,0.25098,163.57,163.47,15.8919]
[1730635958255,8.116203,163.56,163.47,15.8919]
[1730635958462,8.116203,163.55,163.48,0.12549]
[1730635958774,3.62098958,163.54,163.48,0.12549]
[1730635958953,3.62098958,163.53,163.48,0.12549]
[1730635959150,0.25098,163.61,163.48,0.12549]
[1730635959363,0.12549,163.59,163.48,0.12549]
[1730635959561,8.11841195,163.58,163.48,0.12549]
[1730635959769,8.11841195,163.57,163.48,0.12549]
[1730635959963,8.11841195,163.56,163.48,0.12549]
[1730635960272,8.12223809,163.55,163.48,24.027864]
[1730635960575,0.12549,163.61,163.48,24.027864]
[1730635960576,3.62093737,163.54,163.48,24.027864]
[1730635960871,3.62093737,163.53,163.48,24.027864]
[1730635961054,3.62093737,163.52,163.48,24.027864]
[1730635961255,24.153354,163.61,163.48,24.027864]
[1730635961455,8.12967246,163.6,163.48,24.027864]
[1730635961667,8.12967246,163.59,163.48,24.027864]
[1730635961866,8.12967246,163.58,163.48,24.127864]
[1730635962071,8.12967246,163.57,163.52,15.8919]
[1730635962272,21.5677,163.63,163.52,15.8919]
[1730635962585,8.13414095,163.62,163.52,15.8919]
[1730635962761,8.13414095,163.61,163.52,15.8919]
[1730635962946,8.13414095,163.6,163.52,15.8919]
[1730635963151,8.13414095,163.59,163.52,15.8919]
[1730635963372,8.13414095,163.58,163.52,15.8919]
[1730635963672,8.13414095,163.57,163.52,15.8919]
[1730635963872,3.62430054,163.56,163.52,15.8919]
[1730635964078,3.62430054,163.55,163.52,15.8919]
[1730635964372,3.62430054,163.54,163.52,15.8919]
[1730635964569,24.027864,163.62,163.52,15.8919]
[1730635964900,8.13858165,163.61,163.52,15.8919]
[1730635965050,8.13858165,163.6,163.52,15.8919]
[1730635965247,8.13858165,163.59,163.52,15.8919]
[1730635965453,8.13858165,163.59,163.5,6.5351]
[1730635965454,8.13858165,163.58,163.5,6.5351]
[1730635965675,42.367864,163.62,163.5,6.5351]
[1730635965676,0.12549,163.61,163.5,6.5351]
[1730635965850,24.027864,163.59,163.5,6.5351]
[1730635966059,3.62345533,163.58,163.5,6.5351]
[1730635966260,8.13846705,163.57,163.5,6.5351]
[1730635966582,8.13846705,163.56,163.5,6.5351]
[1730635966875,8.13846705,163.55,163.5,6.5351]
[1730635967071,8.13846705,163.54,163.5,6.5351]
[1730635967281,8.13846705,163.53,163.5,6.5351]
[1730635967455,3.62345533,163.52,163.5,6.5351]
[1730635967656,0.12549,163.61,163.5,6.5351]
[1730635967854,24.027864,163.59,163.5,6.5351]
[1730635968081,8.14524662,163.58,163.5,6.5351]
[1730635968375,8.14524662,163.57,163.5,6.5351]
[1730635968677,8.14524662,163.56,163.5,6.5351]
[1730635968866,8.14524662,163.55,163.5,6.5351]
[1730635969182,8.14524662,163.54,163.5,6.5351]
[1730635969382,3.62539349,163.53,163.5,6.5351]
[1730635969676,24.027864,163.59,163.5,6.5351]
[1730635969888,8.15058191,163.58,163.5,6.5351]
[1730635970073,8.15058191,163.57,163.5,6.5351]
[1730635970374,8.15058191,163.56,163.5,6.5351]
[1730635970578,8.15058191,163.55,163.5,6.5351]
[1730635970782,8.15058191,163.54,163.5,6.5351]
[1730635970964,3.62675318,163.53,163.5,6.5351]
[1730635971169,24.027864,163.59,163.5,6.5351]
[1730635971355,8.15507212,163.58,163.5,6.5351]
[1730635971560,8.15507212,163.57,163.5,6.5351]
[1730635971787,8.15507212,163.56,163.5,6.5351]
[1730635971960,8.15507212,163.55,163.5,6.5351]
[1730635972159,8.15507212,163.54,163.5,6.5351]
[1730635972358,3.62814605,163.53,163.5,6.5351]
[1730635972554,24.027864,163.59,163.5,6.5351]
[1730635972864,8.1566186,163.58,163.5,6.5351]
[1730635973057,8.1566186,163.57,163.5,6.5351]
[1730635973254,8.1566186,163.56,163.5,6.5351]
[1730635973457,8.1566186,163.55,163.5,6.5351]
[1730635973684,8.1566186,163.54,163.5,6.5351]
[1730635973984,3.62880587,163.53,163.5,6.5351]
[1730635974164,24.027864,163.59,163.5,6.5351]
[1730635974478,8.15713911,163.58,163.5,6.5351]
[1730635974687,8.15713911,163.57,163.5,6.5351]
[1730635974985,8.15713911,163.56,163.5,6.5351]
[1730635975165,8.15713911,163.55,163.5,6.5351]
[1730635975366,8.15713911,163.54,163.5,6.5351]
[1730635975566,8.15713911,163.53,163.5,6.5351]
[1730635975880,24.027864,163.59,163.5,6.5351]
[1730635976078,8.1575942,163.58,163.5,6.5351]
[1730635976384,8.1575942,163.57,163.5,6.5351]
[1730635976589,8.1575942,163.56,163.5,6.5351]
[1730635976882,8.1575942,163.55,163.5,6.5351]
[1730635977182,8.1575942,163.54,163.5,6.5351]
[1730635977376,8.1575942,163.53,163.5,6.5351]
[1730635977579,24.027864,163.59,163.5,6.5351]
[1730635977772,8.15752976,163.58,163.5,6.5351]
[1730635977965,8.15752976,163.57,163.5,6.5351]
[1730635978166,8.15752976,163.56,163.5,6.5351]
[1730635978356,8.15752976,163.55,163.5,6.5351]
[1730635978561,24.027864,163.59,163.5,6.5351]
[1730635978562,8.15752976,163.54,163.5,6.5351]
[1730635978760,24.027864,163.59,163.5,6.5351]
[1730635978761,4.52974173,163.53,163.5,6.5351]
[1730635978982,24.027864,163.59,163.5,6.5351]
[1730635979160,8.15555795,163.58,163.5,6.5351]
[1730635979366,0.12549,163.61,163.5,6.5351]
[1730635979367,8.15555795,163.57,163.5,6.5351]
[1730635979566,4.52868387,163.56,163.5,6.5351]
[1730635979765,0.12549,163.61,163.5,6.5351]
[1730635979766,8.15555795,163.55,163.5,6.5351]
[1730635979991,24.153354,163.62,163.5,6.5351]
[1730635980169,0.25098,163.6,163.5,6.5351]
[1730635980378,8.15735423,163.59,163.5,6.5351]
[1730635980586,3.6276962,163.58,163.5,6.5351]
[1730635980789,8.15747528,163.57,163.5,6.5351]
[1730635980970,8.15742733,163.56,163.5,6.5351]
[1730635981172,3.62764825,163.55,163.5,6.5351]
[1730635981469,4.52977908,163.54,163.5,6.5351]
[1730635981670,24.153354,163.62,163.5,6.5351]
[1730635981871,24.027864,163.6,163.5,6.5351]
[1730635982188,8.15784068,163.59,163.5,6.5351]
[1730635982393,8.15784068,163.58,163.5,6.5351]
[1730635982569,8.15784068,163.57,163.5,6.5351]
[1730635982765,8.15784068,163.56,163.5,6.5351]
[1730635982970,8.15784068,163.55,163.5,6.5351]
[1730635983186,8.15784068,163.54,163.5,6.5351]
[1730635983383,24.153354,163.62,163.5,6.5351]
[1730635983583,24.027864,163.6,163.5,6.5351]
[1730635983779,8.15852635,163.59,163.5,6.5351]
[1730635983983,8.15852635,163.58,163.5,6.5351]
[1730635984181,8.15852635,163.57,163.5,6.5351]
[1730635984388,8.15852635,163.56,163.5,6.5351]
[1730635984572,3.62714478,163.55,163.5,6.5351]
[1730635984774,8.15902446,163.54,163.5,6.5351]
[1730635984986,4.53187968,163.53,163.5,6.5351]
[1730635985285,24.027864,163.6,163.5,6.5351]
[1730635985504,8.15960687,163.59,163.5,6.5351]
[1730635985800,3.6266631,163.58,163.5,6.5351]
[1730635986091,3.6266631,163.57,163.5,6.5351]
[1730635986270,3.6266631,163.56,163.5,6.5351]
[1730635986596,24.027864,163.6,163.5,6.5351]
[1730635986597,8.15963445,163.55,163.5,6.5351]
[1730635986773,8.15963445,163.54,163.5,6.5351]
[1730635987093,4.53297135,163.53,163.5,6.5351]
[1730635987287,24.027864,163.6,163.5,6.5351]
[1730635987584,8.15937758,163.59,163.5,6.5351]
[1730635987791,8.15937758,163.58,163.5,6.5351]
[1730635987979,8.15937758,163.57,163.5,6.5351]
[1730635988168,8.15937758,163.56,163.5,6.5351]
[1730635988369,8.15937758,163.55,163.5,6.5351]
[1730635988587,8.15937758,163.54,163.5,6.5351]
[1730635988895,4.53305184,163.53,163.5,6.5351]
[1730635989091,24.027864,163.6,163.5,6.5351]
[1730635989392,8.15908886,163.59,163.5,6.5351]
[1730635989573,8.15908886,163.58,163.5,6.5351]
[1730635989774,24.027864,163.6,163.5,6.5351]
[1730635989775,8.15908886,163.57,163.5,6.5351]
[1730635989984,8.15908886,163.56,163.5,6.5351]
[1730635990178,8.15908886,163.55,163.5,6.5351]
[1730635990385,8.15908886,163.54,163.5,6.5351]
[1730635990585,4.53291696,163.53,163.5,6.5351]
[1730635990780,24.027864,163.6,163.5,6.5351]
[1730635990987,8.157184,163.59,163.5,6.5351]
[1730635991301,8.157184,163.58,163.5,6.5351]
[1730635991475,8.157184,163.57,163.5,6.5351]
[1730635991677,0.12549,163.62,163.5,6.5351]
[1730635991678,8.157184,163.56,163.5,6.5351]
[1730635991875,8.157184,163.55,163.5,6.5351]
[1730635992080,4.53206942,163.54,163.5,6.5351]
[1730635992267,0.12549,163.62,163.5,6.5351]
[1730635992473,8.15684811,163.61,163.5,6.5351]
[1730635992690,8.15684811,163.6,163.5,6.5351]
[1730635992884,3.6249173,163.59,163.5,6.5351]
[1730635993071,8.156958,163.58,163.5,6.5351]
[1730635993270,8.156958,163.57,163.5,6.5351]
[1730635993477,8.156958,163.56,163.5,6.5351]
[1730635993775,8.15762437,163.55,163.53,0.12549]
[1730635994087,21.5677,163.63,163.53,0.12549]
[1730635994397,8.15881378,163.62,163.53,0.12549]
[1730635994708,8.15881378,163.61,163.53,44.253354]
[1730635994992,4.53298997,163.6,163.53,44.253354]
[1730635995177,4.53298997,163.59,163.53,44.253354]
[1730635995378,4.53298997,163.58,163.53,44.253354]
[1730635995587,4.53298997,163.57,163.53,44.253354]
[1730635995898,4.53298997,163.56,163.53,44.253354]
[1730635996191,0.1542798,163.64,163.53,44.253354]
[1730635996578,4.53231007,163.63,163.53,44.253354]
[1730635996780,4.53231007,163.62,163.57,0.12549]
[1730635997085,4.53231007,163.61,163.57,0.12549]
[1730635997284,0.1542798,163.64,163.57,0.12549]
[1730635997285,4.53231007,163.6,163.57,0.12549]
[1730635997595,4.53231007,163.59,163.57,0.12549]
[1730635997983,4.53231007,163.58,163.57,0.12549]
[1730635998999,4.53231007,163.58,163.56,6.4785]
[1730635999000,0.1542798,163.64,163.56,6.4785]
[1730635999175,0.1542798,163.64,163.52,22.3754]
[1730635999379,15.7751,163.62,163.52,22.3754]
[1730635999695,24.027864,163.61,163.52,15.8969]
[1730636000271,30.237264,163.61,163.5,6.36761391]
[1730636003685,6.2094,163.61,163.51,0.12549]
[1730636004298,6.2094,163.61,163.5,6.36761391]
[1730636006172,23.902374,163.6,163.5,6.36761391]
[1730636026026,6.2094,163.61,163.5,6.36761391]
[1730636026615,6.2094,163.61,163.51,0.12549]
[1730636026827,15.7751,163.62,163.51,24.127864]
[1730636028101,23.9311638,163.64,163.53,0.12549]